fUSD/lending_fUSD_20250520
["ID","MTS","AMOUNT","RATE_DAILY","PERIOD"]
[361779974,1747775443281,-420.0,0.00032876,5]
[361779976,1747775443292,-420.0,0.00032876,5]
[361779978,1747775443303,-1845.83,0.00032876,5]
[361779980,1747775443313,-420.0,0.00032876,5]
[361779982,1747775443323,-1265.88,0.00032876,5]
[361779985,1747775443334,-420.0,0.00032876,5]
[361779987,1747775443344,-690.16,0.00032876,5]
[361779989,1747775443354,-529.77,0.00032876,5]
[361779991,1747775443364,-420.0,0.00032876,5]
[361779993,1747775443374,-420.0,0.00032876,5]
[361779995,1747775443386,-420.0,0.00032876,5]
[361779997,1747775443396,-400.0,0.00032876,5]
[361779999,1747775443406,-420.0,0.00032876,5]
[361780002,1747775443416,-766.64,0.00032876,5]
[361780004,1747775443426,-1268.81,0.00032876,5]
[361780006,1747775443436,-662.13,0.00032876,5]
[361780008,1747775443447,-886.16752128,0.00032876,5]
[361780015,1747775443505,-640.33247872,0.00032876,5]
[361780017,1747775443515,-409.08171133,0.00032876,5]
[361780020,1747775443528,-10.91828867,0.00032876,5]
[361780022,1747775443538,-420.0,0.00032876,5]
[361780024,1747775443548,-420.0,0.00032876,5]
[361780026,1747775443558,-834.85293037,0.00032876,5]
[361780029,1747775443578,-20.85706963,0.00032876,5]
[361780031,1747775443589,-647.62,0.00032876,5]
[361780034,1747775443599,-339.04605133,0.00032876,5]
[361780036,1747775443612,-541.89394867,0.00032876,5]
[361780038,1747775443623,-420.0,0.00032876,5]
[361780040,1747775443635,-566.16,0.00032876,5]
[361780042,1747775443645,-420.0,0.00032876,5]
[361780044,1747775443655,-376.94605183,0.00032876,5]
[361780047,1747775443669,-43.05394817,0.00032876,5]
[361780049,1747775443679,-420.0,0.00032876,5]
[361780051,1747775443689,-6.94605183,0.00032876,5]
[361780053,1747775443702,-413.05394817,0.00032876,5]
[361780056,1747775443712,-420.0,0.00032876,5]
[361780058,1747775443722,-443.54,0.00032876,5]
[361780060,1747775443732,-424.78,0.00032876,5]
[361780062,1747775443743,-420.0,0.00032876,5]
[361780064,1747775443753,-336.93070818,0.00032876,5]
[361780066,1747775443763,-420.0,0.00032876,5]
[361780068,1747775443773,-420.0,0.00032876,5]
[361780070,1747775443784,-574.63,0.00032876,5]
[361780072,1747775443794,-351.76534359,0.00032876,5]
[361780085,1747775443908,-2842.07465641,0.00032876,5]
[361780088,1747775443918,-450.23,0.00032876,5]
[361780090,1747775443928,-420.0,0.00032876,5]
[361780092,1747775443938,-876.01,0.00032876,5]
[361780094,1747775443949,-939.08,0.00032876,5]
[361780096,1747775443959,-420.0,0.00032876,5]
[361780098,1747775443970,-420.0,0.00032876,5]
[361780100,1747775443981,-420.0,0.00032876,5]
[361780102,1747775443992,-420.0,0.00032876,5]
[361780104,1747775444002,-521.53,0.00032876,5]
[361780107,1747775444018,-420.0,0.00032876,5]
[361780109,1747775444028,-420.0,0.00032876,5]
[361780111,1747775444041,-420.0,0.00032876,5]
[361780113,1747775444051,-420.0,0.00032876,5]
[361780115,1747775444061,-420.0,0.00032876,5]
[361780118,1747775444072,-420.0,0.00032876,5]
[361780120,1747775444083,-420.0,0.00032876,5]
[361780122,1747775444093,-420.0,0.00032876,5]
[361780124,1747775444104,-420.0,0.00032876,5]
[361780126,1747775444114,-500.0,0.00032876,2]
[361780128,1747775444124,-500.0,0.00032876,2]
[361780130,1747775444134,-500.0,0.00032876,2]
[361780132,1747775444145,-500.0,0.00032876,2]
[361780134,1747775444155,-500.0,0.00032876,2]
[361780137,1747775444166,-500.0,0.00032876,2]
[361780139,1747775444175,-500.0,0.00032876,2]
[361780141,1747775444186,-500.0,0.00032876,2]
[361780143,1747775444198,-420.0,0.00032876,5]
[361780145,1747775444210,-500.0,0.00032876,2]
[361780147,1747775444221,-420.0,0.00032876,5]
[361780149,1747775444230,-500.0,0.00032876,2]
[361780151,1747775444242,-500.0,0.00032876,2]
[361780153,1747775444251,-420.0,0.00032876,5]
[361780155,1747775444262,-420.0,0.00032876,5]
[361780157,1747775444273,-420.0,0.00032876,5]
[361780160,1747775444283,-686.51,0.00032876,5]
[361780162,1747775444293,-420.0,0.00032876,5]
[361780164,1747775444303,-420.0,0.00032876,5]
[361780166,1747775444313,-420.0,0.00032876,5]
[361780168,1747775444323,-438.7,0.00032876,5]
[361780170,1747775444333,-832.41,0.00032876,5]
[361780172,1747775444344,-420.0,0.00032876,5]
[361780174,1747775444353,-420.0,0.00032876,5]
[361780176,1747775444363,-420.0,0.00032876,5]
[361780178,1747775444373,-1024.23,0.00032876,5]
[361780180,1747775444384,-420.0,0.00032876,5]
[361780183,1747775444394,-420.0,0.00032876,5]
[361780185,1747775444404,-420.0,0.00032876,5]
[361780187,1747775444414,-200.19677947,0.00032876,5]
[361780189,1747775444424,-420.0,0.00032876,5]
[361780191,1747775444434,-472.09807506,0.00032876,5]
[361780193,1747775444444,-1586.95,0.00032876,5]
[361780195,1747775444454,-3163.31,0.00032876,3]
[361780197,1747775444464,-420.0,0.00032876,5]
[361780199,1747775444474,-420.0,0.00032876,5]
[361780201,1747775444486,-500.0,0.00032876,5]
[361780203,1747775444496,-1271.23,0.00032876,5]
[361780205,1747775444506,-500.0,0.00032876,5]
[361780207,1747775444516,-500.0,0.00032876,5]
[361780209,1747775444527,-500.0,0.00032876,5]
[361780211,1747775444538,-500.0,0.00032876,5]
[361780213,1747775444548,-579.07097676,0.00032876,5]
[361780215,1747775444558,-420.0,0.00032876,5]
[361780217,1747775444568,-420.0,0.00032876,5]
[361780219,1747775444580,-2124.4,0.00032876,5]
[361780221,1747775444590,-420.0,0.00032876,5]
[361780223,1747775444600,-420.0,0.00032876,5]
[361780225,1747775444610,-420.0,0.00032876,5]
[361780227,1747775444620,-584.39,0.00032876,5]
[361780229,1747775444630,-848.78,0.00032876,5]
[361780231,1747775444640,-420.0,0.00032876,5]
[361780234,1747775444651,-420.0,0.00032876,5]
[361780236,1747775444661,-1621.62,0.00032876,5]
[361780238,1747775444672,-3045.67,0.00032876,5]
[361780240,1747775444681,-420.0,0.00032876,5]
[361780242,1747775444692,-420.0,0.00032876,5]
[361780244,1747775444702,-420.0,0.00032876,5]
[361780246,1747775444712,-695.29,0.00032876,5]
[361780248,1747775444722,-420.0,0.00032876,5]
[361780250,1747775444732,-718.3,0.00032876,5]
[361780252,1747775444743,-420.0,0.00032876,5]
[361780254,1747775444754,-420.0,0.00032876,5]
[361780256,1747775444765,-420.0,0.00032876,5]
[361780258,1747775444776,-561.2,0.00032876,5]
[361780260,1747775444787,-420.0,0.00032876,5]
[361780262,1747775444797,-526.61972622,0.00032876,30]
[361780264,1747775444808,-467.46806219,0.00032876,5]
[361780267,1747775444818,-420.0,0.00032876,5]
[361780269,1747775444828,-1779.12,0.00032876,5]
[361780271,1747775444837,-838.94,0.00032876,5]
[361780273,1747775444847,-420.0,0.00032876,5]
[361780275,1747775444858,-364.80867097,0.00032876,5]
[361780277,1747775444869,-420.0,0.00032876,5]
[361780279,1747775444879,-663.23,0.00032876,5]
[361780281,1747775444889,-420.0,0.00032876,5]
[361780283,1747775444900,-470.39,0.00032876,5]
[361780285,1747775444911,-522.98513039,0.00032876,5]
[361780287,1747775444922,-480.18,0.00032876,5]
[361780289,1747775444932,-839.56,0.00032876,5]
[361780291,1747775444942,-668.46,0.00032876,5]
[361780293,1747775444952,-420.0,0.00032876,5]
[361780295,1747775444962,-420.0,0.00032876,5]
[361780297,1747775444972,-1123.05,0.00032876,5]
[361780300,1747775444982,-420.0,0.00032876,5]
[361780302,1747775444992,-434.14,0.00032876,5]
[361780304,1747775445002,-420.0,0.00032876,5]
[361780306,1747775445013,-420.0,0.00032876,5]
[361780308,1747775445023,-4453.36,0.00032876,5]
[361780310,1747775445034,-260.24740702,0.00032876,2]
[361780312,1747775445044,-1118.54,0.00032876,5]
[361780314,1747775445054,-569.95,0.00032876,5]
[361780316,1747775445064,-420.0,0.00032876,5]
[361780318,1747775445075,-1556.45,0.00032876,5]
[361780320,1747775445085,-829.07,0.00032876,5]
[361780322,1747775445095,-420.0,0.00032876,5]
[361780324,1747775445105,-589.36,0.00032876,5]
[361780326,1747775445115,-420.0,0.00032876,5]
[361780328,1747775445125,-845.98,0.00032876,5]
[361780330,1747775445136,-1118.35,0.00032876,5]
[361780332,1747775445147,-420.0,0.00032876,5]
[361780334,1747775445158,-789.13,0.00032876,5]
[361780336,1747775445168,-420.0,0.00032876,5]
[361780339,1747775445178,-420.0,0.00032876,5]
[361780341,1747775445188,-644.7,0.00032876,5]
[361780343,1747775445200,-1586.17,0.00032876,5]
[361780345,1747775445210,-420.0,0.00032876,5]
[361780347,1747775445220,-420.0,0.00032876,5]
[361780349,1747775445230,-609.29,0.00032876,5]
[361780351,1747775445240,-1372.37,0.00032876,5]
[361780353,1747775445251,-420.0,0.00032876,5]
[361780355,1747775445262,-225.59366218,0.00032876,5]
[361780357,1747775445273,-2117.24,0.00032876,5]
[361780359,1747775445284,-420.0,0.00032876,5]
[361780361,1747775445294,-420.0,0.00032876,5]
[361780363,1747775445304,-1091.73,0.00032876,5]
[361780365,1747775445314,-519.46,0.00032876,5]
[361780367,1747775445324,-420.0,0.00032876,5]
[361780369,1747775445336,-1180.01,0.00032876,5]
[361780371,1747775445346,-158.37826028,0.00032876,5]
[361780373,1747775445357,-431.4,0.00032876,5]
[361780375,1747775445368,-420.0,0.00032876,5]
[361780377,1747775445379,-542.22,0.00032876,5]
[361780379,1747775445390,-420.0,0.00032876,5]
[361780381,1747775445400,-628.62,0.00032876,5]
[361780383,1747775445410,-420.0,0.00032876,5]
[361780385,1747775445420,-420.0,0.00032876,5]
[361780387,1747775445431,-420.0,0.00032876,5]
[361780389,1747775445441,-590.7,0.00032876,5]
[361780391,1747775445452,-1137.64,0.00032876,5]
[361780393,1747775445462,-420.0,0.00032876,5]
[361780395,1747775445472,-420.0,0.00032876,5]
[361780397,1747775445482,-1652.94,0.00032876,5]
[361780399,1747775445492,-1647.42,0.00032876,5]
[361780401,1747775445502,-420.0,0.00032876,5]
[361780403,1747775445512,-420.0,0.00032876,5]
[361780405,1747775445521,-420.0,0.00032876,5]
[361780407,1747775445532,-420.0,0.00032876,5]
[361780409,1747775445542,-1636.21,0.00032876,5]
[361780411,1747775445551,-198.74092381,0.00032876,5]
[361780413,1747775445562,-420.0,0.00032876,5]
[361780415,1747775445572,-423.9,0.00032876,5]
[361780417,1747775445581,-385.24854742,0.00032876,5]
[361780420,1747775445591,-491.1,0.00032876,5]
[361780422,1747775445601,-420.0,0.00032876,5]
[361780424,1747775445611,-420.0,0.00032876,5]
[361780426,1747775445620,-420.0,0.00032876,5]
[361780428,1747775445632,-420.0,0.00032876,5]
[361780430,1747775445641,-420.0,0.00032876,5]
[361780432,1747775445651,-530.11,0.00032876,5]
[361780434,1747775445661,-420.0,0.00032876,5]
[361780436,1747775445671,-1436.66,0.00032876,5]
[361780438,1747775445681,-420.0,0.00032876,5]
[361780440,1747775445690,-420.0,0.00032876,5]
[361780442,1747775445700,-420.0,0.00032876,5]
[361780444,1747775445710,-539.92,0.00032876,5]
[361780446,1747775445720,-420.0,0.00032876,5]
[361780448,1747775445731,-470.94,0.00032876,5]
[361780450,1747775445740,-420.0,0.00032876,5]
[361780452,1747775445750,-420.0,0.00032876,5]
[361780454,1747775445760,-420.0,0.00032876,5]
[361780456,1747775445770,-420.0,0.00032876,5]
[361780458,1747775445779,-2488.18,0.00032876,5]
[361780460,1747775445791,-669.18,0.00032876,5]
[361780462,1747775445800,-2444.98,0.00032876,5]
[361780464,1747775445810,-420.0,0.00032876,5]
[361780465,1747775445820,-420.0,0.00032876,5]
[361780467,1747775445830,-420.0,0.00032876,5]
[361780469,1747775445841,-167.562601,0.00032876,5]
[361780472,1747775445851,-1250.41,0.00032876,5]
[361780474,1747775445861,-663.02,0.00032876,5]
[361780476,1747775445873,-420.0,0.00032876,5]
[361780478,1747775445883,-254.62607033,0.00032876,5]
[361780480,1747775445893,-213.23799594,0.00032876,5]
[361780482,1747775445902,-420.0,0.00032876,5]
[361780484,1747775445912,-420.0,0.00032876,5]
[361780486,1747775445921,-420.0,0.00032876,5]
[361780488,1747775445931,-420.0,0.00032876,5]
[361780490,1747775445943,-420.0,0.00032876,5]
[361780492,1747775445953,-563.79,0.00032876,5]
[361780494,1747775445963,-420.0,0.00032876,5]
[361780496,1747775445972,-452.96,0.00032876,5]
[361780498,1747775445982,-420.0,0.00032876,5]
[361780500,1747775445992,-1403.09,0.00032876,5]
[361780502,1747775446002,-1074.05,0.00032876,5]
[361780504,1747775446011,-1889.27,0.00032876,5]
[361780506,1747775446021,-420.0,0.00032876,5]
[361780508,1747775446030,-420.0,0.00032876,5]
[361780510,1747775446040,-538.33,0.00032876,5]
[361780512,1747775446050,-420.0,0.00032876,5]
[361780514,1747775446060,-580.21,0.00032876,5]
[361780516,1747775446069,-420.0,0.00032876,5]
[361780518,1747775446080,-1621.5,0.00032876,5]
[361780520,1747775446090,-311.45793859,0.00032876,5]
[361780522,1747775446100,-582.84,0.00032876,5]
[361780524,1747775446110,-420.0,0.00032876,5]
[361780526,1747775446120,-420.0,0.00032876,5]
[361780528,1747775446129,-3331.97,0.00032876,5]
[361780530,1747775446140,-420.0,0.00032876,5]
[361780532,1747775446151,-1229.32,0.00032876,5]
[361780534,1747775446160,-544.55,0.00032876,5]
[361780536,1747775446170,-420.0,0.00032876,5]
[361780538,1747775446180,-1621.55,0.00032876,5]
[361780540,1747775446191,-420.0,0.00032876,5]
[361780542,1747775446206,-400.0,0.00032876,5]
[361780544,1747775446216,-420.0,0.00032876,5]
[361780547,1747775446227,-420.0,0.00032876,5]
[361780549,1747775446239,-351.86281561,0.00032876,2]
[361780551,1747775446249,-420.0,0.00032876,5]
[361780553,1747775446259,-420.0,0.00032876,5]
[361780555,1747775446270,-1994.22,0.00032876,5]
[361780557,1747775446280,-420.0,0.00032876,5]
[361780559,1747775446290,-420.0,0.00032876,5]
[361780561,1747775446301,-420.0,0.00032876,5]
[361780563,1747775446311,-420.0,0.00032876,5]
[361780599,1747775446723,-691.99,0.00032876,5]
[361780600,1747775446737,-420.0,0.00032876,5]
[361780601,1747775446747,-731.83,0.00032876,5]
[361780602,1747775446757,-420.0,0.00032876,5]
[361780603,1747775446767,-420.0,0.00032876,5]
[361780604,1747775446777,-863.12,0.00032876,5]
[361780605,1747775446787,-420.0,0.00032876,5]
[361780606,1747775446798,-420.0,0.00032876,5]
[361780607,1747775446807,-420.0,0.00032876,5]
[361780608,1747775446817,-241.26755513,0.00032876,5]
[361780609,1747775446826,-689.55,0.00032876,5]
[361780610,1747775446836,-420.0,0.00032876,5]
[361780611,1747775446846,-329.59146448,0.00032876,5]
[361780613,1747775446857,-568.18,0.00032876,5]
[361780615,1747775446867,-420.0,0.00032876,5]
[361780617,1747775446877,-511.58,0.00032876,5]
[361780619,1747775446888,-511.58,0.00032876,5]
[361780621,1747775446897,-511.58,0.00032876,5]
[361780623,1747775446907,-420.0,0.00032876,5]
[361780625,1747775446916,-420.0,0.00032876,5]
[361780627,1747775446926,-380.76635555,0.00032876,5]
[361780629,1747775446937,-452.78,0.00032876,5]
[361780631,1747775446946,-511.58,0.00032876,5]
[361780634,1747775446958,-420.0,0.00032876,5]
[361780636,1747775446971,-511.58,0.00032876,5]
[361780638,1747775446982,-511.58,0.00032876,5]
[361780640,1747775446992,-511.58,0.00032876,5]
[361780642,1747775447004,-511.58,0.00032876,5]
[361780644,1747775447014,-511.58,0.00032876,5]
[361780646,1747775447024,-511.58,0.00032876,5]
[361780648,1747775447034,-420.0,0.00032876,5]
[361780650,1747775447044,-511.58,0.00032876,5]
[361780652,1747775447054,-464.85,0.00032876,5]
[361780654,1747775447064,-513.63,0.00032876,5]
[361780656,1747775447073,-2155.3,0.00032876,5]
[361780658,1747775447083,-420.0,0.00032876,5]
[361780660,1747775447093,-1391.76,0.00032876,5]
[361780662,1747775447103,-706.7,0.00032876,5]
[361780664,1747775447112,-770.21,0.00032876,5]
[361780666,1747775447122,-433.51,0.00032876,5]
[361780668,1747775447134,-420.0,0.00032876,5]
[361780670,1747775447143,-1038.15,0.00032876,5]
[361780672,1747775447153,-420.0,0.00032876,5]
[361780674,1747775447163,-420.0,0.00032876,5]
[361780676,1747775447173,-420.0,0.00032876,5]
[361780678,1747775447183,-545.00765835,0.00032876,5]
[361780680,1747775447193,-440.12,0.00032876,5]
[361780683,1747775447207,-420.0,0.00032876,5]
[361780685,1747775447217,-1162.09,0.00032876,5]
[361780687,1747775447228,-420.0,0.00032876,5]
[361780689,1747775447238,-420.0,0.00032876,5]
[361780691,1747775447249,-976.17,0.00032876,5]
[361780693,1747775447259,-420.0,0.00032876,5]
[361780695,1747775447269,-420.0,0.00032876,5]
[361780697,1747775447280,-1267.79,0.00032876,5]
[361780699,1747775447290,-469.68,0.00032876,5]
[361780701,1747775447300,-2719.4,0.00032876,5]
[361780703,1747775447310,-1033.78,0.00032876,5]
[361780705,1747775447320,-420.0,0.00032876,5]
[361780707,1747775447331,-814.1,0.00032876,5]
[361780709,1747775447341,-420.0,0.00032876,5]
[361780711,1747775447350,-420.0,0.00032876,5]
[361780713,1747775447362,-1149.12,0.00032876,5]
[361780715,1747775447372,-703.5,0.00032876,5]
[361780717,1747775447384,-420.0,0.00032876,5]
[361780720,1747775447394,-2142.05,0.00032876,5]
[361780722,1747775447407,-1861.57,0.00032876,5]
[361780724,1747775447416,-420.0,0.00032876,5]
[361780726,1747775447426,-1705.42,0.00032876,5]
[361780728,1747775447435,-1057.66,0.00032876,5]
[361780730,1747775447446,-420.0,0.00032876,5]
[361780732,1747775447455,-420.0,0.00032876,5]
[361780734,1747775447465,-420.0,0.00032876,5]
[361780736,1747775447474,-420.0,0.00032876,5]
[361780738,1747775447484,-1603.1,0.00032876,5]
[361780740,1747775447494,-3529.16,0.00032876,5]
[361780742,1747775447504,-688.06,0.00032876,5]
[361780744,1747775447514,-614.34,0.00032876,5]
[361780746,1747775447527,-420.0,0.00032876,5]
[361780748,1747775447537,-958.0,0.00032876,5]
[361780750,1747775447547,-252.06,0.00032876,5]
[361780752,1747775447558,-400.0,0.00032876,5]
[361780754,1747775447568,-420.0,0.00032876,5]
[361780756,1747775447578,-600.43,0.00032876,5]
[361780758,1747775447588,-1443.01,0.00032876,5]
[361780760,1747775447599,-420.0,0.00032876,5]
[361780762,1747775447609,-420.0,0.00032876,5]
[361780764,1747775447619,-420.0,0.00032876,5]
[361780766,1747775447630,-14.45327421,0.00032876,5]
[361780847,1747775448426,-387.32302964,0.00032876,5]
[361780849,1747775448436,-1656.49,0.00032876,5]
[361780851,1747775448446,-420.0,0.00032876,5]
[361780853,1747775448456,-1297.46,0.00032876,5]
[361780855,1747775448466,-1693.51,0.00032876,5]
[361780857,1747775448475,-420.0,0.00032876,2]
[361780859,1747775448484,-23.48275454,0.00032876,5]
[361780871,1747775448598,-396.51724546,0.00032876,5]
[361780873,1747775448609,-343.44825336,0.00032876,5]
[361780876,1747775448622,-76.55174664,0.00032876,5]
[361780878,1747775448633,-420.0,0.00032876,5]
[361780880,1747775448644,-799.81,0.00032876,5]
[361780882,1747775448655,-844.23,0.00032876,5]
[361780884,1747775448665,-1628.67419219,0.00032876,5]
[361780889,1747775448708,-486.88580781,0.00032876,5]
[361780891,1747775448718,-10.68521314,0.00032876,5]
[361780895,1747775448747,-750.89478686,0.00032876,5]
[361780897,1747775448757,-420.0,0.00032876,5]
[361780899,1747775448768,-1046.22,0.00032876,5]
[361780901,1747775448778,-420.0,0.00032876,5]
[361780904,1747775448788,-1894.55919268,0.00032876,5]
[361780906,1747775448801,-1144.62080732,0.00032876,5]
[361780908,1747775448810,-420.0,0.00032876,5]
[361780910,1747775448820,-1495.61,0.00032876,5]
[361780912,1747775448835,-806.16,0.00032876,5]
[361780927,1747775448975,-529.71,0.00032876,5]
[361780929,1747775448986,-420.0,0.00032876,5]
[361780932,1747775448996,-425.29123412,0.00032876,5]
[361780934,1747775449007,-1740.64,0.00032876,5]
[361780936,1747775449016,-880.1,0.00032876,5]
[361780938,1747775449026,-1053.34,0.00032876,5]
[361780940,1747775449035,-420.0,0.00032876,5]
[361780942,1747775449045,-956.87,0.00032876,5]
[361780944,1747775449055,-420.0,0.00032876,5]
[361780946,1747775449065,-420.0,0.00032876,5]
[361780948,1747775449075,-1564.76,0.00032876,5]
[361780950,1747775449084,-420.0,0.00032876,5]
[361780952,1747775449093,-2053.1,0.00032876,5]
[361780954,1747775449102,-420.0,0.00032876,5]
[361780956,1747775449113,-420.0,0.00032876,5]
[361780958,1747775449122,-420.0,0.00032876,5]
[361780959,1747775449133,-420.0,0.00032876,5]
[361780962,1747775449143,-420.0,0.00032876,5]
[361780964,1747775449154,-420.0,0.00032876,5]
[361780966,1747775449163,-423.38,0.00032876,5]
[361780968,1747775449173,-697.71,0.00032876,5]
[361780969,1747775449182,-420.0,0.00032876,5]
[361780972,1747775449193,-591.34,0.00032876,5]
[361780973,1747775449205,-1325.49,0.00032876,5]
[361780974,1747775449215,-1915.03,0.00032876,5]
[361780975,1747775449224,-420.0,0.00032876,5]
[361780976,1747775449234,-420.0,0.00032876,5]
[361780977,1747775449244,-517.70041291,0.00032876,5]
[361780979,1747775449255,-420.0,0.00032876,5]
[361780981,1747775449264,-420.0,0.00032876,5]
[361780983,1747775449275,-1224.25,0.00032876,5]
[361780985,1747775449286,-420.0,0.00032876,5]
[361780987,1747775449296,-473.36,0.00032876,5]
[361780990,1747775449306,-420.0,0.00032876,5]
[361780992,1747775449315,-420.0,0.00032876,5]
[361780994,1747775449325,-1585.63,0.00032876,5]
[361780996,1747775449335,-400.0,0.00032876,5]
[361780998,1747775449345,-1058.1,0.00032876,5]
[361781000,1747775449354,-77.9591561,0.00032876,5]
[361781012,1747775449464,-342.0408439,0.00032876,5]
[361781014,1747775449474,-420.0,0.00032876,5]
[361781016,1747775449484,-420.0,0.00032876,5]
[361781018,1747775449494,-1246.48,0.00032876,5]
[361781020,1747775449504,-578.89,0.00032876,5]
[361781022,1747775449513,-420.0,0.00032876,5]
[361781024,1747775449523,-1351.36,0.00032876,5]
[361781026,1747775449533,-420.0,0.00032876,5]
[361781028,1747775449542,-376.69393805,0.00032876,5]
[361781031,1747775449552,-1218.73,0.00032876,5]
[361781033,1747775449561,-420.0,0.00032876,5]
[361781035,1747775449570,-422.7,0.00032876,5]
[361781037,1747775449580,-907.0,0.00032876,5]
[361781039,1747775449589,-420.0,0.00032876,5]
[361781041,1747775449599,-2694.81,0.00032876,5]
[361781043,1747775449609,-718.74,0.00032876,5]
[361781045,1747775449618,-420.0,0.00032876,5]
[361781047,1747775449627,-439.61,0.00032876,5]
[361781049,1747775449637,-862.36,0.00032876,5]
[361781051,1747775449646,-2392.43,0.00032876,5]
[361781053,1747775449655,-420.0,0.00032876,5]
[361781055,1747775449664,-420.0,0.00032876,5]
[361781057,1747775449674,-420.0,0.00032876,5]
[361781059,1747775449683,-420.0,0.00032876,5]
[361781061,1747775449692,-621.2,0.00032876,5]
[361781063,1747775449701,-1645.18,0.00032876,5]
[361781065,1747775449711,-420.0,0.00032876,5]
[361781067,1747775449720,-1720.37,0.00032876,5]
[361781069,1747775449729,-420.0,0.00032876,5]
[361781071,1747775449737,-420.0,0.00032876,5]
[361781073,1747775449747,-420.0,0.00032876,5]
[361781075,1747775449755,-420.0,0.00032876,5]
[361781077,1747775449765,-420.0,0.00032876,5]
[361781079,1747775449774,-420.0,0.00032876,5]
[361781081,1747775449784,-587.64,0.00032876,5]
[361781083,1747775449793,-683.82,0.00032876,5]
[361781085,1747775449803,-420.0,0.00032876,5]
[361781087,1747775449813,-420.0,0.00032876,5]
[361781089,1747775449831,-420.0,0.00032876,5]
[361781091,1747775449841,-459.43,0.00032876,5]
[361781093,1747775449850,-420.0,0.00032876,5]
[361781095,1747775449861,-1098.09,0.00032876,5]
[361781097,1747775449871,-2130.5,0.00032876,5]
[361781099,1747775449881,-420.0,0.00032876,5]
[361781101,1747775449892,-2057.14,0.00032876,5]
[361781103,1747775449902,-420.0,0.00032876,5]
[361781105,1747775449914,-420.0,0.00032876,5]
[361781107,1747775449924,-821.49,0.00032876,5]
[361781109,1747775449936,-420.0,0.00032876,5]
[361781111,1747775449945,-420.0,0.00032876,5]
[361781114,1747775449956,-420.0,0.00032876,5]
[361781116,1747775449967,-1187.02,0.00032876,5]
[361781118,1747775449977,-420.0,0.00032876,5]
[361781120,1747775449986,-420.0,0.00032876,5]
[361781122,1747775449996,-427.72,0.00032876,5]
[361781123,1747775450005,-1075.21,0.00032876,5]
[361781125,1747775450014,-400.0,0.00032876,5]
[361781127,1747775450024,-1317.58,0.00032876,5]
[361781129,1747775450034,-420.0,0.00032876,5]
[361781132,1747775450044,-420.0,0.00032876,5]
[361781134,1747775450053,-420.0,0.00032876,5]
[361781136,1747775450063,-420.0,0.00032876,5]
[361781138,1747775450073,-420.0,0.00032876,5]
[361781140,1747775450083,-2244.37,0.00032876,5]
[361781142,1747775450092,-3366.66,0.00032876,5]
[361781144,1747775450101,-420.0,0.00032876,5]
[361781146,1747775450111,-962.61,0.00032876,5]
[361781148,1747775450120,-420.0,0.00032876,5]
[361781150,1747775450129,-557.67,0.00032876,5]